{"text_format":"3","workbook":"xlsx","n_sheets":2,"sheets":["Start","Kunderentabilitet"],"not_rendered":{"charts":1},"read":"whole","date_system":"1900"}

{"sheet":"Start","index":0,"n_rows":7,"n_cols":2,"rows_kept":7}
[null,"OM DENNE SKABELON"]
[null,"Brug denne kunderentabilitetsanalyse til at registrere kundeaktivitet, salgsomkostninger og andre omkostninger."]
[null,"Udfyld oplysninger som f.eks. firmanavn, dato og detaljer i tabeller."]
[null,"Værdier i cellerne med formler og tabellen med sammenfattende resultater beregnes automatisk, og diagrammet opdateres."]
[null,"Bemærk!  "]
[null,"Du kan finde yderligere vejledning i kolonne A i regnearket KUNDERENTABILITET. Denne tekst er med vilje skjult. Du kan fjerne tekst ved at markere kolonne A og derefter vælge Slet. For ikke længere at skjule tekst skal du markere kolonne A og derefter ændre skriftfarven."]
[null,"Hvis du vil vide mere om tabellerne i dette regneark, skal du trykke på Skift og derefter F10, mens du er i en tabel, vælge indstillingen Tabel og derefter vælge Alternativ tekst."]

{"sheet":"Kunderentabilitet","index":1,"n_rows":37,"n_cols":6,"rows_kept":37,"merged":[[36,1,36,5]]}
["Opret en kunderentabilitetsanalyse i dette regneark. I cellerne i denne kolonne vises en udførlig vejledning i, hvordan man bruger dette regneark. Pil ned for at starte."]
["Angiv firmanavn i cellen til højre.","Firmanavn"]
["Titlen på dette regneark vises i cellen til højre.","Kunderentabilitetsanalyse"]
["Angiv dato i cellen til højre.","Dato"]
["Tip er i cellen til højre.","Grå celler beregnes automatisk for dig. Du behøver ikke at angive noget i dem."]
["Angiv oplysninger i tabellen Kundeaktivitet, der begynder i cellen til højre. Den næste vejledning er i celle A12.","Kundeaktivitet:","Segmentnavn 1","Segmentnavn 2","Segmentnavn 3","I alt"]
[null,"Antal aktive kunder – ved periodens begyndelse",5,8,8,{"$f":"SUM(C7:E7)","v":21}]
[null,"Antal tilføjede kunder",2,4,4,{"$f":"SUM(C8:E8)","v":10}]
[null,"Antal kunder, der er mistet/opsagt",{"v":-1,"d":"-1 "},{"v":-2,"d":"-2 "},{"v":-2,"d":"-2 "},{"$f":"SUM(C9:E9)","v":{"v":-5,"d":"-5 "}}]
[null,"Antal aktive kunder – ved periodens afslutning",{"$f":"SUBTOTAL(109,Kundeaktivitet[Segmentnavn 1])","v":6},{"$f":"SUBTOTAL(109,Kundeaktivitet[Segmentnavn 2])","v":10},{"$f":"SUBTOTAL(109,Kundeaktivitet[Segmentnavn 3])","v":10},{"$f":"SUBTOTAL(109,Kundeaktivitet[I alt])","v":26}]
[]
["Angiv detaljer i tabellen Rentabilitetsanalyse, der begynder i cellen til højre. Den næste vejledning er i celle A16.","Rentabilitetsanalyse:","Segmentnavn 1","Segmentnavn 2","Segmentnavn 3","I alt"]
[null,"Indtægt pr. kundesegment",{"v":1500000,"d":"kr. 1,500,000.00"},{"v":1800000,"d":"kr. 1,800,000.00"},{"v":2500000,"d":"kr. 2,500,000.00"},{"$f":"SUM(Rentabilitetsanalyse[[#This Row],[Segmentnavn 1]:[Segmentnavn 3]])","v":{"v":5800000,"d":"kr. 5,800,000.00"}}]
[null,"Vægtning",{"$f":"+C13/$F$13","v":{"v":0.25862068965517243,"d":"26%"}},{"$f":"+D13/$F$13","v":{"v":0.3103448275862069,"d":"31%"}},{"$f":"+E13/$F$13","v":{"v":0.43103448275862066,"d":"43%"}},{"$f":"SUM(Rentabilitetsanalyse[[#This Row],[Segmentnavn 1]:[Segmentnavn 3]])","v":{"v":1,"d":"100%"}}]
[]
["Angiv oplysninger i tabellen Salgsomkostninger, der begynder i cellen til højre. Den næste vejledning er i celle A23.","Salgsomkostninger:","Segmentnavn 1","Segmentnavn 2","Segmentnavn 3","I alt"]
[null,"Løbende omkostninger for service og support",{"v":1000000,"d":"kr. 1,000,000.00"},{"v":1400000,"d":"kr. 1,400,000.00"},{"v":1400000,"d":"kr. 1,400,000.00"},{"$f":"SUM(C17:E17)","v":{"v":3800000,"d":"kr. 3,800,000.00"}}]
[null,"Andre direkte kundeomkostninger",{"v":200000,"d":"kr. 200,000.00"},{"v":100000,"d":"kr. 100,000.00"},{"v":100000,"d":"kr. 100,000.00"},{"$f":"SUM(C18:E18)","v":{"v":400000,"d":"kr. 400,000.00"}}]
[null,"Salgsomkostninger i alt",{"$f":"SUM(C17:C18)","v":{"v":1200000,"d":"kr. 1,200,000.00"}},{"$f":"SUM(D17:D18)","v":{"v":1500000,"d":"kr. 1,500,000.00"}},{"$f":"SUM(E17:E18)","v":{"v":1500000,"d":"kr. 1,500,000.00"}},{"$f":"SUM(F17:F18)","v":{"v":4200000,"d":"kr. 4,200,000.00"}}]
[null,"Bruttoavance",{"$f":"+C13-C19","v":{"v":300000,"d":"kr. 300,000.00"}},{"$f":"+D13-D19","v":{"v":300000,"d":"kr. 300,000.00"}},{"$f":"+E13-E19","v":{"v":1000000,"d":"kr. 1,000,000.00"}},{"$f":"+F13-F19","v":{"v":1600000,"d":"kr. 1,600,000.00"}}]
[null,"Vægtning",{"$f":"MAX(0, MIN(1,C20/$F$20))","v":{"v":0.1875,"d":"19%"}},{"$f":"MAX(0, MIN(1,D20/$F$20))","v":{"v":0.1875,"d":"19%"}},{"$f":"MAX(0, MIN(1,E20/$F$20))","v":{"v":0.625,"d":"63%"}},{"$f":"SUM(C21:E21)","v":{"v":1,"d":"100%"}}]
[]
["Angiv oplysninger i tabellen Andre omkostninger, der begynder i cellen til højre. Den næste vejledning er i celle A31.","Andre omkostninger:","Segmentnavn 1","Segmentnavn 2","Segmentnavn 3","I alt"]
[null,"Kundeerhvervelse",{"v":105000,"d":"kr. 105,000.00"},{"v":120000,"d":"kr. 120,000.00"},{"v":235000,"d":"kr. 235,000.00"},{"$f":"SUM(AndreOmkostninger[[#This Row],[Segmentnavn 1]:[Segmentnavn 3]])","v":{"v":460000,"d":"kr. 460,000.00"}}]
[null,"Kunderelateret marketing",{"v":150000,"d":"kr. 150,000.00"},{"v":125000,"d":"kr. 125,000.00"},{"v":275000,"d":"kr. 275,000.00"},{"$f":"SUM(C25:E25)","v":{"v":550000,"d":"kr. 550,000.00"}}]
[null,"Kundeopsigelse",{"v":80000,"d":"kr. 80,000.00"},{"v":190000,"d":"kr. 190,000.00"},{"v":140000,"d":"kr. 140,000.00"},{"$f":"SUM(C26:E26)","v":{"v":410000,"d":"kr. 410,000.00"}}]
[null,"Andre kundeomkostninger i alt",{"$f":"SUM(C24:C26)","v":{"v":335000,"d":"kr. 335,000.00"}},{"$f":"SUM(D24:D26)","v":{"v":435000,"d":"kr. 435,000.00"}},{"$f":"SUM(E24:E26)","v":{"v":650000,"d":"kr. 650,000.00"}},{"$f":"SUM(F24:F26)","v":{"v":1420000,"d":"kr. 1,420,000.00"}}]
[null,"Kundeprofit efter segment",{"$f":"+C20-C27","v":{"v":-35000,"d":"kr. -35,000.00"}},{"$f":"+D20-D27","v":{"v":-135000,"d":"kr. -135,000.00"}},{"$f":"+E20-E27","v":{"v":350000,"d":"kr. 350,000.00"}},{"$f":"SUM(C28:E28)","v":{"v":180000,"d":"kr. 180,000.00"}}]
[null,"Vægtning",{"$f":"MAX(0,MIN(1, C28/$F$28))","v":{"v":0,"d":"0%"}},{"$f":"MAX(0,MIN(1, D28/$F$28))","v":{"v":0,"d":"0%"}},{"$f":"MAX(0,MIN(1, E28/$F$28))","v":{"v":1,"d":"100%"}},{"$f":"SUM(C29:E29)","v":{"v":1,"d":"100%"}}]
[]
["Tabellen Sammenfattende resultater, der begynder i cellen til højre, opdateres automatisk. Den næste vejledning er i celle A37.","Sammenfattende resultater:","Segmentnavn 1","Segmentnavn 2","Segmentnavn 3","Tendens"]
[null,"Gennemsnitlige omkostninger pr. erhvervede kunde",{"$f":"+C24/C8","v":{"v":52500,"d":"kr. 52,500.00"}},{"$f":"+D24/D8","v":{"v":30000,"d":"kr. 30,000.00"}},{"$f":"+E24/E8","v":{"v":58750,"d":"kr. 58,750.00"}}]
[null,"Gennemsnitlige omkostninger pr. opsagte kunde",{"$f":"-C26/C9","v":{"v":80000,"d":"kr. 80,000.00"}},{"$f":"-D26/D9","v":{"v":95000,"d":"kr. 95,000.00"}},{"$f":"-E26/E9","v":{"v":70000,"d":"kr. 70,000.00"}}]
[null,"Gennemsnitlige marketingsrelaterede omkostninger pr. aktive kunde",{"$f":"+C26/Kundeaktivitet[[#Totals],[Segmentnavn 1]]","v":{"v":13333.333333333334,"d":"kr. 13,333.33"}},{"$f":"+D25/Kundeaktivitet[[#Totals],[Segmentnavn 2]]","v":{"v":12500,"d":"kr. 12,500.00"}},{"$f":"+E25/Kundeaktivitet[[#Totals],[Segmentnavn 3]]","v":{"v":27500,"d":"kr. 27,500.00"}}]
[null,"Gennemsnitlige profit (tab) pr. kunde",{"$f":"+C29/Kundeaktivitet[[#Totals],[Segmentnavn 1]]","v":{"v":0,"d":"kr. 0.00"}},{"$f":"+D28/Kundeaktivitet[[#Totals],[Segmentnavn 2]]","v":{"v":-13500,"d":"kr. -13,500.00"}},{"$f":"+E28/Kundeaktivitet[[#Totals],[Segmentnavn 3]]","v":{"v":35000,"d":"kr. 35,000.00"}}]
[]
["Grupperet søjlediagram, der viser sammenfattende resultater pr. kundesegment, er i cellen til højre.","Grupperet søjlediagram, der viser sammenfattende resultater pr. kundesegment, er i denne celle."]